bitfinex-derivatives/quotes_SOLF0:USTF0_20241002
["timestamp","ask_amount","ask_price","bid_price","bid_amount"]
[1727885026765,3.3851,147.7,147.67,3.3855]
[1727885027774,0.12502,147.71,147.65,16.26]
[1727885027972,3.3854,147.69,147.66,3.3858]
[1727885028276,0.12502,147.71,147.66,5.54]
[1727885028571,3.3851,147.7,147.67,3.3856]
[1727885028770,3.3851,147.7,147.66,5.54]
[1727885028974,3.3851,147.7,147.67,3.3857]
[1727885029168,0.12502,147.71,147.66,5.54]
[1727885029370,3.3854,147.69,147.66,5.54]
[1727885029566,10.52502,147.71,147.67,10.4]
[1727885029871,13.90982,147.71,147.67,10.4]
[1727885030067,10.52502,147.71,147.66,15.94]
[1727885030876,3.3852,147.7,147.67,3.3856]
[1727885031276,3.3852,147.7,147.68,3.3855]
[1727885032174,10.52502,147.71,147.67,3.3856]
[1727885032571,3.3851,147.7,147.67,3.3856]
[1727885032878,0.12502,147.71,147.7,13.785]
[1727885033080,0.12502,147.71,147.7,19.325]
[1727885033276,0.12502,147.71,147.7,15.94]
[1727885033474,0.12502,147.71,147.69,3.3851]
[1727885033672,0.12502,147.71,147.69,5.54]
[1727885033873,0.12502,147.71,147.7,13.785]
[1727885034074,0.12502,147.71,147.69,15.94]
[1727885034774,0.12502,147.71,147.7,10.4]
[1727885034982,0.12502,147.71,147.69,9.1452]
[1727885035181,0.12502,147.71,147.64,3.40825998]
[1727885035380,0.12502,147.71,147.68,3.3853]
[1727885035683,0.12502,147.71,147.6,9.4811]
[1727885035980,10.52502,147.71,147.66,10.4]
[1727885036285,10.52502,147.71,147.66,16.16]
[1727885036984,3.3851,147.7,147.68,3.3854]
[1727885037485,3.3851,147.7,147.67,3.3857]
[1727885037683,0.12502,147.71,147.67,10.4]
[1727885039092,3.385,147.7,147.68,3.3853]
[1727885039381,3.385,147.7,147.67,10.4]
[1727885039778,0.12502,147.71,147.68,10.4]
[1727885040379,0.12502,147.71,147.7,3.385]
[1727885040587,0.12502,147.71,147.67,10.4]
[1727885040975,3.51002,147.71,147.69,3.3852]
[1727885041186,3.51002,147.71,147.67,10.4]
[1727885041488,3.51002,147.71,147.69,3.3851]
[1727885041789,0.12502,147.71,147.7,10.4]
[1727885042092,0.12502,147.71,147.7,13.785]
[1727885042288,0.12502,147.71,147.67,1.2794]
[1727885042488,0.12502,147.71,147.69,10.4]
[1727885043179,0.12502,147.71,147.7,3.385]
[1727885043580,0.12502,147.71,147.69,10.4]
[1727885043884,1.02040816,147.76,147.75,3.3839]
[1727885044184,1.02040816,147.76,147.75,13.7839]
[1727885044684,0.12502,147.77,147.76,3.3836]
[1727885045085,0.12502,147.77,147.75,10.4]
[1727885045086,4.6519,147.82,147.75,10.4]
[1727885045284,0.12502,147.83,147.81,10.4]
[1727885045582,0.12502,147.83,147.78,16.24]
[1727885045786,0.12502,147.83,147.77,16.24]
[1727885045985,0.12502,147.83,147.79,5.76]
[1727885046181,0.12502,147.83,147.82,3.3823]
[1727885046386,0.12502,147.83,147.79,22.0]
[1727885046691,3.3825,147.82,147.79,22.0]
[1727885047193,3.50722,147.83,147.79,22.0]
[1727885047485,3.50722,147.83,147.79,25.3828]
[1727885048191,3.3812,147.87,147.82,3.3823]
[1727885048491,0.12502,147.89,147.85,16.24]
[1727885048689,3.50572,147.89,147.88,16.24]
[1727885048987,0.12502,147.89,147.88,16.24]
[1727885049982,0.12518,147.91,147.88,16.24]
[1727885050291,0.12518,147.91,147.9,16.24]
[1727885051287,0.4040404,147.94,147.9,16.24]
[1727885051489,0.4040404,147.94,147.92,16.24]
[1727885051688,0.4040404,147.94,147.9,22.36]
[1727885052088,3.7837404,147.94,147.9,22.36]
[1727885052282,0.4040404,147.94,147.9,16.24]
[1727885052686,0.4040404,147.94,147.89,6.12]
[1727885052885,0.4040404,147.94,147.88,22.36]
[1727885053289,0.4040404,147.94,147.9,16.24]
[1727885054393,0.4040404,147.94,147.92,19.62]
[1727885054593,0.4040404,147.94,147.92,16.24]
[1727885055999,0.4040404,147.94,147.92,22.36]
[1727885056700,0.12502,147.95,147.92,22.36]
[1727885056890,0.12502,147.95,147.94,16.24]
[1727885057496,0.12502,147.95,147.94,19.6195]
[1727885058192,0.12502,147.95,147.94,16.24]
[1727885059400,0.4040404,147.98,147.97,16.24]
[1727885060098,3.7826404,147.98,147.97,16.24]
[1727885060904,0.4040404,147.98,147.97,16.24]
[1727885061395,3.7826404,147.98,147.97,16.24]
[1727885061601,0.4040404,147.98,147.97,16.24]
[1727885064715,1.45642,148.01,147.97,16.24]
[1727885065193,1.45642,148.01,147.9,4.76247191]
[1727885065194,3.50312,148.01,147.99,16.24]
[1727885065397,0.12502,148.01,147.97,16.24]
[1727885066396,0.12502,148.01,147.97,19.6188]
[1727885066603,0.12502,148.01,147.97,16.24]
[1727885066799,3.3786,147.98,147.97,16.24]
[1727885067010,0.12502,148.01,147.97,16.24]
[1727885067302,0.12502,148.01,147.9,1.3816]
[1727885067497,0.12502,148.01,147.97,16.24]
[1727885067897,3.50312,148.01,147.97,19.6187]
[1727885068098,0.12502,148.01,147.97,19.6187]
[1727885068499,3.3783,148.0,147.97,19.6187]
[1727885068906,0.12502,148.01,147.98,19.6185]
[1727885069107,0.12502,148.01,147.98,16.24]
[1727885069313,0.12502,148.01,147.96,16.24]
[1727885069509,3.3797,147.94,147.89,6.60502]
[1727885069706,16.24,147.99,147.89,22.84502]
[1727885069901,0.12502,148.01,147.93,16.24]
[1727885070104,0.12502,148.01,147.97,16.24]
[1727885070304,0.12502,148.01,148.0,3.3782]
[1727885070508,0.12502,148.01,147.99,16.24]
[1727885071209,0.12502,148.01,148.0,19.6182]
[1727885071415,0.4040404,148.06,148.0,16.24]
[1727885071617,0.4040404,148.06,148.0,26.0981]
[1727885071808,3.3771,148.05,148.0,22.72]
[1727885072015,0.4040404,148.06,148.02,19.6175]
[1727885072310,0.4040404,148.06,148.04,16.24]
[1727885072513,3.7809404,148.06,148.02,22.72]
[1727885072714,0.4040404,148.06,148.02,22.72]
[1727885072923,3.7809404,148.06,148.02,22.72]
[1727885073517,3.7808404,148.06,148.02,22.72]
[1727885074124,0.4040404,148.06,147.96,2.6651]
[1727885074321,0.4040404,148.06,148.0,16.24]
[1727885074826,0.4040404,148.06,148.03,16.24]
[1727885075324,3.7809404,148.06,148.03,16.24]
[1727885076532,3.3772,148.05,148.03,16.24]
[1727885076826,0.4040404,148.06,148.03,16.24]
[1727885078132,3.7810404,148.06,148.03,16.24]
[1727885078316,0.4040404,148.06,148.03,16.24]
[1727885080233,0.4040404,148.06,148.04,3.3771]
[1727885080921,0.4040404,148.06,148.03,16.24]
[1727885081526,3.3778,148.02,147.99,3.3783]
[1727885081732,0.4040404,148.06,148.01,16.24]
[1727885082131,0.4040404,148.06,148.03,16.24]
[1727885082832,3.3771,148.05,148.03,16.24]
[1727885083033,0.4040404,148.06,148.03,16.24]
[1727885083335,3.3771,148.05,148.03,16.24]
[1727885084032,0.4040404,148.06,148.03,16.24]
[1727885084719,3.3771,148.05,148.03,16.24]
[1727885085634,0.4040404,148.06,147.96,1.329]
[1727885085834,0.4040404,148.06,148.04,10.37]
[1727885086237,0.4040404,148.06,148.0,6.48]
[1727885086527,10.7740404,148.06,147.96,2.6101]
[1727885086732,3.3772,148.05,148.0,10.37]
[1727885086932,13.4692404,148.06,148.0,10.37]
[1727885087828,3.3779,148.01,148.0,10.37]
[1727885088023,6.48,148.05,148.0,10.37]
[1727885088229,16.85,148.05,148.0,10.37]
[1727885088435,3.3779,148.01,148.0,10.37]
[1727885089229,3.3773,148.04,148.0,10.37]
[1727885089436,3.3773,148.04,148.03,10.37]
[1727885089640,0.4040404,148.06,148.03,23.49]
[1727885089831,200.71523,148.09,148.05,16.21]
[1727885090031,200.71523,148.09,148.06,3.3766]
[1727885090233,200.71523,148.09,148.08,16.21]
[1727885091737,200.71523,148.09,148.06,16.21]
[1727885091933,200.71523,148.09,148.03,7.28]
[1727885092138,200.71523,148.09,148.03,23.49]
[1727885092325,200.71523,148.09,148.05,16.21]
[1727885092740,200.71523,148.09,148.03,7.28]
[1727885093041,200.71523,148.09,148.03,23.49]
[1727885093242,200.71523,148.09,148.01,1.42292]
[1727885093435,200.71523,148.09,148.03,16.21]
[1727885093736,3.3765,148.08,148.04,3.3772]
[1727885093933,200.71523,148.09,148.04,3.3772]
[1727885094133,200.71523,148.09,148.03,16.21]
[1727885094342,3.3766,148.07,148.03,16.21]
[1727885094635,200.71523,148.09,148.03,16.21]
[1727885094839,3.3765,148.08,148.05,16.21]
[1727885095240,3.3767,148.07,148.05,16.21]
[1727885096246,3.3768,148.06,148.05,16.21]
[1727885096745,3.3768,148.06,148.05,14.21]
[1727885097243,3.3767,148.07,148.05,14.21]
[1727885098831,200.71523,148.09,148.05,14.21]
[1727885099939,200.71523,148.09,148.07,16.21]
[1727885100342,3.3765,148.08,148.05,19.587]
[1727885101037,200.71523,148.09,148.05,16.21]
[1727885101643,200.71523,148.09,148.02,2.6686]
[1727885101837,200.71523,148.09,148.07,16.21]
[1727885102042,200.71523,148.09,148.07,19.5864]
[1727885102343,200.71523,148.09,148.07,16.21]
[1727885102550,200.71523,148.09,148.08,3.3763]
[1727885102747,78.34743,148.09,148.08,3.3763]
[1727885103051,75.95713,148.09,148.08,3.3763]
[1727885103551,74.01373,148.09,148.08,3.3763]
[1727885104049,74.01373,148.09,148.08,6.79932025]
[1727885104243,40.97243,148.09,148.08,3.3763]
[1727885104553,40.97243,148.09,148.07,32.42]
[1727885104554,0.4040404,148.1,148.09,3.3761]
[1727885104854,3.49882,148.19,148.12,16.21]
[1727885105042,0.12502,148.19,148.12,10.6554]
[1727885105249,0.12502,148.19,148.16,16.21]
[1727885105644,0.12502,148.19,148.12,7.28]
[1727885105645,0.12502,148.19,148.18,19.5841]
[1727885105845,0.12502,148.19,148.12,7.28]
[1727885106050,0.12502,148.19,148.17,16.21]
[1727885106350,0.12502,148.25,148.17,16.21]
[1727885106351,0.12502,148.25,148.18,16.21]
[1727885106549,0.12502,148.25,148.21,16.21]
[1727885106744,3.49762,148.25,148.21,19.5832]
[1727885107342,0.12502,148.25,148.22,3.3731]
[1727885107547,0.12502,148.25,148.22,23.49]
[1727885107851,0.12502,148.25,148.22,26.863]
[1727885108148,0.12502,148.25,148.22,23.49]
[1727885108339,7.12605674,148.27,148.26,3.3722]
[1727885109346,0.12502,148.31,148.26,16.21]
[1727885109552,0.12502,148.31,148.29,16.21]
[1727885109754,2.7184,148.36,148.3,16.21]
[1727885110052,0.12502,148.37,148.34,16.21]
[1727885110248,0.12502,148.37,148.34,23.49]
[1727885110441,0.12502,148.37,148.36,16.21]
[1727885110642,3.29960879,148.41,148.36,16.21]
[1727885110842,3.29960879,148.41,148.38,16.21]
[1727885111048,4.0777,148.44,148.38,16.21]
[1727885111049,2.7668,148.44,148.38,23.49]
[1727885111250,2.7668,148.44,148.4,16.21]
[1727885111457,2.7668,148.44,148.38,23.49]
[1727885111757,2.7668,148.44,148.38,7.28]
[1727885112051,2.7668,148.44,148.35,25.87]
[1727885112357,0.4040404,148.47,148.38,3.3693]
[1727885112560,2.7816,148.46,148.36,7.28]
[1727885112948,2.7816,148.46,148.38,3.3695]
[1727885113151,6.1495,148.46,148.36,7.28]
[1727885113352,2.7816,148.46,148.38,3.3695]
[1727885113656,2.7816,148.46,148.35,25.87]
[1727885113860,2.7816,148.46,148.38,3.3693]
[1727885114152,3.369,148.41,148.34,7.28]
[1727885114352,29.25960776,148.41,148.31,10.77612]
[1727885114656,7.8090604,148.43,148.31,0.12502]
[1727885114657,3.3709,148.32,148.31,0.12502]
[1727885115047,3.33906186,148.34,148.31,0.12502]
[1727885115461,3.33906186,148.34,148.25,0.12502]
[1727885115764,3.3711,148.31,148.25,0.12502]
[1727885115945,33.15,148.36,148.25,3.49742]
[1727885116153,36.45208403,148.36,148.25,3.49742]
[1727885116352,36.45208403,148.36,148.25,0.12502]
[1727885116553,25.87,148.33,148.25,0.12502]
[1727885117358,3.3712,148.31,148.25,0.12502]
[1727885117664,10.58208403,148.36,148.26,25.87]
[1727885117665,3.30208403,148.36,148.26,25.87]
[1727885118166,25.87,148.36,148.26,3.3722]
[1727885118352,25.87,148.36,148.25,0.12502]
[1727885118863,13.37817025,148.37,148.26,25.87]
[1727885119252,13.37817025,148.37,148.29,3.3714]
[1727885119565,3.3705,148.34,148.29,3.3714]
[1727885119759,13.37817025,148.37,148.28,3.3717]
[1727885119964,13.37817025,148.37,148.26,33.47]
[1727885120155,13.37817025,148.37,148.25,0.12502]
[1727885120560,0.35941795,148.29,148.25,0.12502]
[1727885120864,39.24817025,148.37,148.25,0.12502]
[1727885120865,1.3666,148.36,148.25,0.12502]
[1727885121264,1.3666,148.36,148.26,25.87]
[1727885121463,1.3666,148.36,148.28,25.87]
[1727885121664,2.70942,148.37,148.31,25.87]
[1727885122763,3.3701,148.36,148.32,3.3708]
[1727885123065,2.70942,148.37,148.31,25.87]
[1727885123268,2.70942,148.37,148.36,3.37]
[1727885123475,2.70942,148.37,148.31,25.87]
[1727885123966,0.12502,148.37,148.31,25.87]
[1727885124172,0.12502,148.37,148.33,25.87]
[1727885124366,0.12502,148.37,148.36,3.37]
[1727885124971,0.12502,148.37,148.36,29.24]
[1727885125463,3.9476,148.42,148.36,29.24]
[1727885125464,2.581,148.42,148.41,3.3688]
[1727885126373,0.5290604,148.43,148.36,25.87]
[1727885127169,3.3693,148.39,148.32,25.87]
[1727885127373,0.5290604,148.43,148.32,33.47]
[1727885127761,3.3691,148.4,148.37,3.3697]
[1727885127964,7.6,148.39,148.25,0.12502]
[1727885128159,3.37,148.36,148.25,25.99502]
[1727885128365,2.5873,148.35,148.31,3.49612]
[1727885128566,2.5873,148.35,148.31,0.12502]
[1727885128963,2.5873,148.35,148.25,25.99502]
[1727885130473,7.6,148.34,148.25,25.99502]
[1727885130664,2.5873,148.35,148.25,25.99502]
[1727885130864,7.6,148.34,148.25,25.99502]
[1727885131069,10.1873,148.35,148.31,3.3711]
[1727885131670,10.1873,148.35,148.25,25.99502]
[1727885131872,10.1873,148.35,148.32,3.3709]
[1727885132073,10.1873,148.35,148.25,25.99502]
[1727885132267,13.5577,148.35,148.31,3.371]
[1727885132674,13.5577,148.35,148.25,25.99502]
[1727885132868,13.5577,148.35,148.31,3.3709]
[1727885133270,3.3705,148.34,148.31,3.3709]
[1727885133472,10.1873,148.35,148.31,3.3709]
[1727885133776,2.5873,148.35,148.32,3.3708]
[1727885134079,5.9576,148.35,148.32,3.3708]
[1727885134267,5.9576,148.35,148.31,3.371]
[1727885135089,5.9576,148.35,148.32,3.3708]
[1727885135575,2.5873,148.35,148.27,25.87]
[1727885136374,2.5873,148.35,148.33,3.3705]
[1727885136881,2.5873,148.35,148.34,3.3704]
[1727885137474,0.12502,148.37,148.36,3.37]
[1727885138069,0.12502,148.37,148.34,3.3704]
[1727885138267,0.12502,148.37,148.25,98.79502]
[1727885138268,0.12502,148.37,148.27,25.9955]
[1727885138468,3.3703,148.35,148.27,33.47]
[1727885138680,0.12502,148.37,148.32,3.3707]
[1727885138681,7.72502,148.37,148.32,3.3707]
[1727885139083,3.3704,148.35,148.27,33.47]
[1727885139379,3.29209923,148.36,148.27,7.6]
[1727885139684,3.3707,148.33,148.27,7.6]
[1727885139870,3.44681137,148.35,148.29,3.3714]
[1727885140066,1.2704,148.34,148.25,25.99502]
[1727885140271,3.3708,148.33,148.3,3.3713]
[1727885140475,6.0087,148.33,148.3,3.3713]
[1727885140974,2.6379,148.33,148.25,25.99502]
[1727885141784,2.6379,148.33,148.31,3.3709]
[1727885142079,2.6379,148.33,148.25,0.12502]
[1727885142277,7.6,148.32,148.25,0.12502]
[1727885142772,3.3713,148.3,148.27,3.3719]
[1727885142979,7.6,148.32,148.25,0.12502]
[1727885143175,2.6379,148.33,148.25,0.12502]
[1727885143372,10.2379,148.33,148.25,0.12502]
[1727885144076,3.371,148.32,148.29,3.3714]
[1727885144477,10.2379,148.33,148.29,3.3714]
[1727885144680,2.6379,148.33,148.25,25.99502]
[1727885144981,2.6379,148.33,148.27,25.87]
[1727885145177,2.6379,148.33,148.32,3.3709]
[1727885145569,2.6379,148.33,148.27,25.87]
[1727885145781,2.6379,148.33,148.31,3.371]
[1727885145978,2.6379,148.33,148.27,25.87]
[1727885146487,2.6379,148.33,148.32,3.3709]
[1727885146871,1.0,148.42,148.27,25.87]
[1727885147073,1.3468,148.38,148.36,3.37]
[1727885149278,2.6129,148.41,148.36,3.37]
[1727885149483,2.6129,148.41,148.36,29.24]
[1727885149986,1.2818,148.41,148.4,3.3691]
[1727885150874,1.2818,148.41,148.36,25.87]
[1727885150875,1.8443604,148.43,148.36,25.87]
[1727885151079,1.8443604,148.43,148.41,3.3686]
[1727885151275,0.5290604,148.43,148.38,25.87]
[1727885151480,0.5290604,148.43,148.42,3.3686]
[1727885152279,0.5290604,148.43,148.38,25.87]
[1727885152484,0.5290604,148.43,148.36,25.87]
[1727885153987,0.5290604,148.43,148.42,3.3686]
[1727885154483,0.5290604,148.43,148.33,0.1263]
[1727885154678,33.63,148.42,148.29,25.87]
[1727885154879,33.63,148.42,148.27,0.2534]
[1727885154880,25.87,148.4,148.27,33.63]
[1727885155386,2.7067,148.39,148.27,33.63]
[1727885155687,3.29661059,148.38,148.27,33.63]
[1727885155884,7.76,148.37,148.27,33.63]
[1727885156081,1.2662,148.38,148.29,25.87]
[1727885156281,1.2662,148.38,148.33,3.3706]
[1727885156480,1.2662,148.38,148.29,25.87]
[1727885156782,1.2662,148.38,148.33,3.3706]
[1727885156978,1.2662,148.38,148.29,25.87]
[1727885157383,1.2662,148.38,148.33,3.3705]
[1727885157603,1.2662,148.38,148.27,25.87]
[1727885157787,25.87,148.37,148.27,25.87]
[1727885158081,25.87,148.37,148.32,3.3707]
[1727885158886,25.87,148.37,148.27,25.87]
[1727885159292,1.2662,148.38,148.27,25.87]
[1727885159478,7.76,148.37,148.34,3.3702]
[1727885159684,1.2662,148.38,148.31,25.99502]
[1727885160578,1.2662,148.38,148.35,3.37]
[1727885160781,1.2662,148.38,148.31,0.12502]
[1727885160980,25.87,148.37,148.31,0.12502]
[1727885161280,25.87,148.35,148.29,3.3716]
[1727885161483,25.87,148.35,148.25,0.12502]
[1727885161484,7.76,148.34,148.25,0.12502]
[1727885161688,7.76,148.34,148.28,3.3716]
[1727885161883,7.76,148.34,148.25,0.12502]
[1727885163588,25.87,148.33,148.25,0.12502]
[1727885163981,3.3712,148.31,148.27,3.372]
[1727885164195,2.6643,148.3,148.25,0.12502]
[1727885165190,3.372,148.28,148.25,3.49742]
[1727885165390,2.6643,148.3,148.25,0.12502]
[1727885165591,2.6643,148.3,148.29,3.3716]
[1727885165896,7.76,148.33,148.25,0.12502]
[1727885166690,7.76,148.33,148.29,3.3714]
[1727885166988,7.76,148.33,148.25,0.12502]
[1727885168390,3.371,148.32,148.29,3.3715]
[1727885168697,25.87,148.35,148.25,0.12502]
[1727885168889,4.0453,148.36,148.31,3.3709]
[1727885168890,11.1305,148.34,148.31,3.3709]
[1727885169092,7.76,148.35,148.26,25.87]
[1727885169291,4.0453,148.36,148.26,25.87]
[1727885169491,11.8053,148.36,148.26,25.87]
[1727885169999,15.1753,148.36,148.26,25.87]
[1727885170186,2.7387,148.36,148.28,25.87]
[1727885170593,0.12502,148.37,148.3,25.87]
[1727885171192,0.12502,148.37,148.28,25.87]
[1727885171396,0.12502,148.37,148.26,33.8838]
[1727885171592,0.12502,148.37,148.34,3.3703]
[1727885171799,0.12502,148.37,148.28,25.87]
[1727885173112,0.12502,148.37,148.26,33.63]
[1727885173305,0.12502,148.37,148.28,25.87]
[1727885173713,0.12502,148.37,148.34,3.3703]
[1727885174110,0.12502,148.37,148.28,25.87]
[1727885174310,7.88502,148.37,148.36,3.37]
[1727885174507,7.88502,148.37,148.28,25.87]
[1727885175012,7.88502,148.37,148.36,3.37]
[1727885175721,0.12502,148.37,148.36,3.37]
[1727885176010,0.5290604,148.43,148.35,25.87]
[1727885176612,0.5290604,148.43,148.42,3.3686]
[1727885176820,0.5290604,148.43,148.35,25.87]
[1727885177111,0.5290604,148.43,148.32,33.63]
[1727885177424,0.5290604,148.43,148.32,25.87]
[1727885177610,26.3990604,148.43,148.37,3.3696]
[1727885178106,26.3990604,148.43,148.36,3.3698]
[1727885178416,26.3990604,148.43,148.31,0.12502]
[1727885178919,26.3990604,148.43,148.32,6.7416]
[1727885179616,26.3990604,148.43,148.31,0.12502]
[1727885180113,25.87,148.41,148.31,0.12502]
[1727885180316,33.77,148.41,148.31,0.12502]
[1727885180514,3.3694,148.39,148.36,3.3698]
[1727885180720,33.77,148.41,148.31,0.12502]
[1727885180922,37.139,148.41,148.34,3.3704]
[1727885181114,33.77,148.41,148.31,0.12502]
[1727885181618,25.87,148.39,148.31,0.12502]
[1727885181813,7.44981527,148.38,148.31,0.12502]
[1727885182119,4.0203,148.38,148.31,0.12502]
[1727885182514,3.3701,148.36,148.33,3.3704]
[1727885182716,4.0203,148.38,148.31,0.12502]
[1727885183315,4.0203,148.38,148.25,0.12502]
[1727885183316,25.87,148.36,148.25,0.12502]
[1727885183516,7.9,148.35,148.25,0.12502]
[1727885184120,25.87,148.34,148.25,0.12502]
[1727885184524,26.87,148.34,148.25,0.12502]
[1727885184821,25.87,148.32,148.25,0.12502]
[1727885185027,1.3273,148.31,148.25,0.12502]
[1727885185225,7.9,148.3,148.25,0.12502]
[1727885185428,9.2356,148.3,148.25,0.12502]
[1727885185638,35.1056,148.3,148.19,0.12502]
[1727885186119,35.1056,148.3,148.22,3.373]
[1727885186330,25.87,148.27,148.19,0.12502]
[1727885186518,25.87,148.27,148.2,3.3735]
[1727885186726,25.87,148.27,148.19,0.12502]
[1727885187721,3.3726,148.25,148.21,3.3732]
[1727885187924,1.0,148.29,148.19,0.12502]
[1727885188130,9.2356,148.3,148.21,25.87]
[1727885188324,3.3721,148.27,148.19,8.02502]
[1727885188528,1.3101,148.29,148.19,8.02502]
[1727885189228,1.3101,148.29,148.19,0.12502]
[1727885189428,25.87,148.27,148.19,0.12502]
[1727885190030,3.3729,148.24,148.2,3.3735]
[1727885190731,11.2725,148.25,148.19,0.12502]
[1727885190928,7.9,148.25,148.19,0.12502]
[1727885191225,7.9,148.25,148.22,3.3729]
[1727885191429,7.9,148.25,148.19,0.12502]
[1727885192628,7.9,148.25,148.22,3.373]
[1727885192828,7.9,148.25,148.19,0.12502]
[1727885193028,1.2608,148.26,148.19,0.12502]
[1727885193329,1.2608,148.26,148.16,24.97461184]
[1727885193527,0.12502,148.25,148.24,3.3725]
[1727885199337,0.4040404,148.28,148.27,3.372]
[1727885202531,0.4040404,148.28,148.21,33.77]
[1727885202843,3.3721,148.27,148.21,7.9]
[1727885203049,1.3338,148.27,148.19,0.12502]
[1727885203241,1.3432,148.26,148.19,0.12502]
[1727885203545,3.3725,148.25,148.19,0.12502]
[1727885204146,3.3728,148.24,148.19,0.12502]
[1727885204439,9.2432,148.26,148.19,0.12502]
[1727885204641,9.2432,148.26,148.21,3.3732]
[1727885204839,9.2432,148.26,148.19,0.12502]
[1727885205832,3.3729,148.24,148.21,3.3734]
[1727885206352,9.2432,148.26,148.22,3.3731]
[1727885206543,3.3726,148.25,148.22,3.3731]
[1727885206741,9.2432,148.26,148.19,0.12502]
[1727885208038,3.3727,148.25,148.21,3.3732]
[1727885208245,9.2432,148.26,148.19,0.12502]
[1727885208642,3.373,148.23,148.2,3.3734]
[1727885208945,9.2432,148.26,148.19,0.12502]
[1727885209346,9.2432,148.26,148.19,3.49872]
[1727885209347,3.3734,148.22,148.19,3.49872]
[1727885209942,25.87,148.25,148.19,0.12502]
[1727885210248,25.87,148.23,148.13,0.12502]
[1727885211547,25.87,148.23,148.18,3.3741]
[1727885211548,3.3735,148.21,148.18,3.3741]
[1727885211744,1.2683,148.2,148.13,0.12502]
[1727885212144,1.2683,148.2,148.15,3.3747]
[1727885212353,1.2683,148.2,148.13,0.12502]
[1727885212853,1.2683,148.2,148.18,3.374]
[1727885213146,1.2683,148.2,148.13,0.12502]
[1727885213356,1.2607,148.19,148.13,0.12502]
[1727885213549,4.6346,148.19,148.17,3.3743]
[1727885213745,1.2607,148.19,148.17,3.3743]
[1727885215951,1.2607,148.19,148.18,3.3741]
[1727885216149,1.2607,148.19,148.13,0.12502]
[1727885216551,1.2607,148.19,148.17,3.3741]
[1727885217657,1.2607,148.19,148.18,3.3741]
[1727885217947,1.2683,148.2,148.13,0.12502]
[1727885218152,8.9702,148.23,148.19,3.3738]
[1727885218350,8.9702,148.23,148.13,0.12502]
[1727885218351,1.3702,148.23,148.16,25.87]
[1727885218746,1.3702,148.23,148.13,0.12502]
[1727885218747,1.3702,148.23,148.13,33.59502]
[1727885219358,3.3732,148.22,148.19,3.3737]
[1727885219656,1.3702,148.23,148.13,33.59502]
[1727885219850,3.3737,148.2,148.17,3.3741]
[1727885220051,3.3737,148.2,148.13,33.59502]
[1727885220251,1.3702,148.23,148.13,33.59502]
[1727885220454,3.3735,148.21,148.18,3.374]
[1727885220657,1.3702,148.23,148.13,33.59502]
[1727885221455,4.7432,148.23,148.2,3.3735]
[1727885222052,1.3702,148.23,148.22,3.3731]
[1727885222250,1.3702,148.23,148.16,25.87]
[1727885222652,0.12502,148.25,148.18,25.87]
[1727885222858,0.12502,148.25,148.18,33.47]
[1727885223058,0.12502,148.25,148.2,25.87]